Workbook

Sheet ورقة1
A1: 0 | B1: القيمة الايجارية | D1: 2023-09-09 | E1: =18/100 -> 0.18 | I1: =SUM(K5:K50) -> 129600 | J1: =SUM(H5:H50) -> 120000 | K1: =I1-J1 -> 9600 | L1: -1 | N1: التاريخ | O1: التاريخ | Q1: ب | R1: 2023-01-01
B2: 12000 | I2: =(K1) -> 9600 | K2: =IF(K1<=0,"دائن","مدين") -> مدين | N2: =">="&R1 -> >=44927 | O2: ="<="&R2 -> <=45017 | Q2: ن | R2: 2023-04-01
E3: 12
A4: التاريخ | B4: التاريخ | D4: القيمة الايجارية | E4: غرامة تأخير | F4: ضريبة قيمة مضافة | G4: المبلغ المستحق | H4: المبلغ المسدد | I4: تاريخ السداد | J4: رقم الايصال | K4: الرصيد | N4: التاريخ | P4: القيمة الايجارية | Q4: غرامة تأخير | R4: ضريبة قيمة مضافة | S4: المبلغ المستحق | T4: المبلغ المسدد | U4: تاريخ السداد | V4: رقم الايصال
A5: 2023-01-01 | B5: 2023-01-01 | C5: =(DATEDIF(A5,$D$1,"m")) -> 8 | D5: =IFERROR(IF(C5>=$A$1,$B$2),"0") -> 12000 | E5: =C5/$E$3*$E$1*D5 -> 1440 | F5: =D5*14% -> 1680 | G5: =SUM(D5:F5) -> 15120 | K5: =IFERROR(G5,"0") -> 15120 | N5: 2023-01-01 | P5: 12000 | Q5: 1440 | R5: 1680 | S5: 15120
A6: 2023-02-01 | B6: 2023-02-01 | C6: =(DATEDIF(A6,$D$1,"m")) -> 7 | D6: =IFERROR(IF(C6>=$A$1,$B$2),"0") -> 12000 | E6: 1260 | F6: =D6*14% -> 1680 | G6: =F6+E6+D6 -> 14940 | K6: =IFERROR(G6,"0") -> 14940 | N6: 2023-02-01 | P6: 12000 | Q6: 1260 | R6: 1680 | S6: 14940
A7: 2023-03-01 | B7: 2023-03-01 | C7: 6 | D7: 12000 | E7: 1080 | F7: =D7*14% -> 1680 | G7: =F7+E7+D7 -> 14760 | K7: 14760 | N7: 2023-03-01 | P7: 12000 | Q7: 1080 | R7: 1680 | S7: 14760
A8: 2023-04-01 | B8: 2023-04-01 | C8: 5 | D8: 12000 | E8: 900 | F8: =D8*14% -> 1680 | G8: =F8+E8+D8 -> 14580 | H8: 100000 | K8: 14580 | N8: 2023-04-01 | P8: 12000 | Q8: 900 | R8: 1680 | S8: 14580 | T8: 100000
A9: 2023-05-01 | B9: 2023-05-01 | C9: 4 | D9: 12000 | E9: 720 | F9: =D9*14% -> 1680 | G9: =F9+E9+D9 -> 14400 | K9: 14400
A10: 2023-06-01 | B10: 2023-06-01 | C10: 3 | D10: 12000 | E10: 540 | F10: =D10*14% -> 1680 | G10: =F10+E10+D10 -> 14220 | K10: 14220
A11: 2023-07-01 | B11: 2023-07-01 | C11: 2 | D11: 12000 | E11: 360 | F11: =D11*14% -> 1680 | G11: =F11+E11+D11 -> 14040 | H11: 20000 | K11: 14040
A12: 2023-08-01 | B12: 2023-08-01 | C12: 1 | D12: 12000 | E12: 180 | F12: =D12*14% -> 1680 | G12: =F12+E12+D12 -> 13860 | K12: 13860
A13: 2023-09-01 | B13: 2023-09-01 | C13: 0 | D13: 12000 | E13: 0 | F13: =D13*14% -> 1680 | G13: =F13+E13+D13 -> 13680 | K13: 13680
A14: 2023-10-01 | B14: 2023-10-01 | D14: 0 | F14: =D14*14% -> 0 | G14: =F14+E14+D14 ->  | K14: 0
A15: 2023-11-01 | B15: 2023-11-01 | D15: 0 | F15: =D15*14% -> 0 | G15: =F15+E15+D15 -> 0 | K15: 0
A16: 2023-12-01 | B16: 2023-12-01 | D16: 0 | F16: =D16*14% -> 0 | G16: =F16+E16+D16 -> 0 | K16: 0
A17: 2024-01-01 | B17: 2024-01-01 | D17: 0 | F17: =D17*14% -> 0 | G17: =F17+E17+D17 -> 0 | K17: 0
F18: =D18*14% -> 0 | G18: =F18+E18+D18 -> 0 | K18: 0
K19: 0
K20: 0
K21: 0
K22: 0
K23: 0
K24: 0
K25: 0
K26: 0
K27: 0
K28: 0
K29: 0
K30: 0
K31: 0
K32: 0
K33: 0
K34: 0
K35: 0
K36: 0
K37: 0
K38: 0
K39: 0
K40: 0
K41: 0
K42: 0
K43: 0
K44: 0
K45: 0
K46: 0
K47: 0
K48: 0
K49: 0
K50: 0
K51: 0

Sheet ورقة2

Sheet ورقة3
